{"text_format":"1","workbook":"xlsx","n_sheets":5,"sheets":["RESUMO","PLANILHA PADRÃO","CRONOGRAMA FISICO-FINANCEIRO","COMPOSIÇÃO DO BDI","COMPOSIÇÃO DO BDI EQUIPAMENTO"],"not_rendered":{"charts":0,"images":10,"macros":1,"external_links":0,"defined_names":66,"comments":0,"pivot_tables":0},"unopened":[],"bounds":{"document_bytes":16777216,"sheet_cells":100000,"rows_first":2000,"rows_last":500,"rows_between":2000,"halvings":0,"cell_chars":16384,"cell_head_chars":4096},"cells_cut":0,"cells_raw":0,"read":"whole","date_system":"1900"}

{"sheet":"RESUMO","index":0,"n_rows":39,"n_cols":5,"rows_kept":39,"cut":false,"hidden":false,"merged":[[10,1,10,3],[0,0,0,4],[1,0,1,4],[2,0,2,4],[4,0,4,4],[3,0,3,4],[5,0,5,4],[6,0,6,4],[7,1,7,3],[8,1,8,3],[9,0,9,4],[20,1,20,3],[11,1,11,3],[12,1,12,3],[13,1,13,3],[14,1,14,3],[15,1,15,3],[16,1,16,3],[17,1,17,3],[18,1,18,3],[19,1,19,3],[32,1,32,3],[21,1,21,3],[22,1,22,3],[23,1,23,3],[24,1,24,3],[25,1,25,3],[26,1,26,3],[27,1,27,3],[28,1,28,3],[29,1,29,3],[30,1,30,3],[31,1,31,3],[37,1,37,3],[38,0,38,3],[33,1,33,3],[34,1,34,3],[35,1,35,3],[36,1,36,3]]}
[" PLANILHA ORÇAMENTARIA"]
[{"$f":"'PLANILHA PADRÃO'!A6:F6","v":"OBRA: CONTRATAÇÃO DE EMPRESA ESPECIALIZADA PARA EXECUÇÃO DA OBRA DE REFORMA DO CENTRO COMUNITÁRIO SANTA LUZIA"}]
[{"$f":"'PLANILHA PADRÃO'!A7:F7","v":"UNIDADE OPERACIONAL: SESI ESCOLA VÁRZEA GRANDE (OBRA REFORMA CENTRO COMUNITÁRIO STA LUZIA)"}]
[{"$f":"'PLANILHA PADRÃO'!A8:F8","v":"ENDEREÇO: AV. RUA MÁRIO DE ALMEIDA, LOTE 06, SANTA LUZIA              CIDADE: VÁRZEA GRANDE/MT"}]
["CONSTRUTORA:"]
["RESPONSÁVEL TÉCNICO: "]
["PLANILHA RESUMO"]
["ITEM","DESCRIÇÃO",null,null,"Valor Total (R$)"]
[]
["PLANILHA RESUMO - SESI ESCOLA VÁRZEA GRANDE (OBRA REFORMA CENTRO COMUNITÁRIO STA LUZIA)"]
[1,{"$f":"'CRONOGRAMA FISICO-FINANCEIRO'!B13","v":"ADMINISTRAÇÃO DE OBRA"},null,null,{"$f":"'CRONOGRAMA FISICO-FINANCEIRO'!C13","v":20018.48}]
[]
[2,{"$f":"'CRONOGRAMA FISICO-FINANCEIRO'!B14","v":"CANTEIRO DE OBRAS"},null,null,{"$f":"'CRONOGRAMA FISICO-FINANCEIRO'!C14","v":12916.630000000001}]
[]
[3,{"$f":"'CRONOGRAMA FISICO-FINANCEIRO'!B15","v":"DEMOLIÇÕES"},null,null,{"$f":"'CRONOGRAMA FISICO-FINANCEIRO'!C15","v":10226.539999999999}]
[]
[4,{"$f":"'CRONOGRAMA FISICO-FINANCEIRO'!B16","v":"FECHAMENTO"},null,null,{"$f":"'CRONOGRAMA FISICO-FINANCEIRO'!C16","v":3309.67}]
[]
[5,{"$f":"'CRONOGRAMA FISICO-FINANCEIRO'!B17","v":"REVESTIMENTO INTERNO E EXTERNO"},null,null,{"$f":"'CRONOGRAMA FISICO-FINANCEIRO'!C17","v":22968.3}]
[]
[6,{"$f":"'CRONOGRAMA FISICO-FINANCEIRO'!B18","v":"COBERTURA"},null,null,{"$f":"'CRONOGRAMA FISICO-FINANCEIRO'!C18","v":45262.32}]
[]
[7,{"$f":"'CRONOGRAMA FISICO-FINANCEIRO'!B19","v":"PISO"},null,null,{"$f":"'CRONOGRAMA FISICO-FINANCEIRO'!C19","v":22682.11}]
[]
[8,{"$f":"'CRONOGRAMA FISICO-FINANCEIRO'!B20","v":"ESQUADRIA"},null,null,{"$f":"'CRONOGRAMA FISICO-FINANCEIRO'!C20","v":22856.620000000003}]
[]
[9,{"$f":"'CRONOGRAMA FISICO-FINANCEIRO'!B21","v":"PINTURA INTERNA E EXTERNA"},null,null,{"$f":"'CRONOGRAMA FISICO-FINANCEIRO'!C21","v":52405.06}]
[]
[10,{"$f":"'CRONOGRAMA FISICO-FINANCEIRO'!B22","v":"INSTALAÇÕES SANITÁRIAS"},null,null,{"$f":"'CRONOGRAMA FISICO-FINANCEIRO'!C22","v":14593.99}]
[]
[11,{"$f":"'CRONOGRAMA FISICO-FINANCEIRO'!B23","v":"INSTALAÇÕES HIDRÁULICAS"},null,null,{"$f":"'CRONOGRAMA FISICO-FINANCEIRO'!C23","v":17769.84}]
[]
[12,{"$f":"'CRONOGRAMA FISICO-FINANCEIRO'!B24","v":"INSTALAÇÕES ELÉTRICAS"},null,null,{"$f":"'CRONOGRAMA FISICO-FINANCEIRO'!C24","v":16808.280000000002}]
[]
[13,{"$f":"'CRONOGRAMA FISICO-FINANCEIRO'!B25","v":"SERVIÇOS COMPLEMENTARES"},null,null,{"$f":"'CRONOGRAMA FISICO-FINANCEIRO'!C25","v":4841.12}]
[]
[14,{"$f":"'CRONOGRAMA FISICO-FINANCEIRO'!B26","v":"LIMPEZA FINAL DE OBRA"},null,null,{"$f":"'CRONOGRAMA FISICO-FINANCEIRO'!C26","v":738.71}]
[]
["VALOR TOTAL DA OBRA SESI ESCOLA VÁRZEA GRANDE (OBRA REFORMA CENTRO COMUNITÁRIO STA LUZIA)",null,null,null,{"$f":"SUM(E11:E38)","v":267397.67}]

{"sheet":"PLANILHA PADRÃO","index":1,"n_rows":191,"n_cols":6,"rows_kept":191,"cut":false,"hidden":false,"merged":[[0,3,1,5],[2,3,3,3],[2,4,3,4],[2,5,3,5],[0,0,3,2],[9,0,9,5],[10,0,10,5],[4,0,4,5],[5,0,5,5],[7,0,7,5],[6,0,6,5],[8,0,8,5]]}
["                                 PLANILHA ORÇAMENTARIA   ",null,null,"SPN-FF-003"]
[]
[null,null,null,"Folha:              1 de 1","Revisão:      \n02","Data: \n07/10/19"]
[]
["SESI - SERVIÇO SOCIAL DA INDUSTRIA/DR-MT"]
["OBRA: CONTRATAÇÃO DE EMPRESA ESPECIALIZADA PARA EXECUÇÃO DA OBRA DE REFORMA DO CENTRO COMUNITÁRIO SANTA LUZIA"]
["UNIDADE OPERACIONAL: SESI ESCOLA VÁRZEA GRANDE (OBRA REFORMA CENTRO COMUNITÁRIO STA LUZIA)"]
["ENDEREÇO: AV. RUA MÁRIO DE ALMEIDA, LOTE 06, SANTA LUZIA              CIDADE: VÁRZEA GRANDE/MT"]
["CONSTRUTORA:"]
["RESPONSÁVEL TÉCNICO:"]
[]
["ITEM","DESCRIÇÃO","UNID.","QUANT.","Valor UNIT. (R$)","Valor Total (R$)"]
[]
[1,"ADMINISTRAÇÃO DE OBRA",null,null,null,{"$f":"SUBTOTAL(9,F15:F16)","v":20018.48}]
["1.1","ENGENHEIRO CIVIL DE OBRA JUNIOR COM ENCARGOS COMPLEMENTARES","H",88,113.37,{"$f":"ROUND(D15*E15,2)","v":9976.56}]
["1.2","ENCARREGADO GERAL DE OBRAS COM ENCARGOS COMPLEMENTARES","MES",2,5020.96,{"$f":"ROUND(D16*E16,2)","v":10041.92}]
[]
[2,"CANTEIRO DE OBRAS",null,null,null,{"$f":"SUBTOTAL(9,F19:F23)","v":12916.630000000001}]
["2.1","PLACA DE OBRA EM CHAPA DE AÇO GALVANIZADA, INSTALADA","M2",3.13,371.44,1162.6099999999999]
["2.2","LOCAÇÃO DE CONTAINER (MOBILIZAÇÃO E DESMOBILIZAÇÃO)","MÊS",2,1071.52,{"$f":"ROUND(D20*E20,2)","v":2143.04}]
["2.3","TAPUME COM COMPENSADO DE MADEIRA. AF_05/2018 - alterei a quantidade considerando apenas o lado que o muro está caído: 64m²","M2",64,110.79,7090.56]
["2.4","DESPESA MENSAL COM CONSUMO DE ÁGUA","MÊS",2,159.06,{"$f":"ROUND(D22*E22,2)","v":318.12}]
["2.5","CONSUMO MENSAL DE ENERGIA ELÉTRICA","MÊS",2,1101.1500000000001,2202.3000000000002]
[]
[3,"DEMOLIÇÕES",null,null,null,{"$f":"SUBTOTAL(9,F26:F40)","v":10226.539999999999}]
["3.1","DEMOLIÇÃO DE ALVENARIA DE BLOCO FURADO, DE FORMA MANUAL, SEM REAPROVEITAMENTO. AF_12/2017","M3",3.01,49.97,150.41]
["3.2","REMOÇÃO DE PORTAS, DE FORMA MANUAL, SEM REAPROVEITAMENTO. AF_12/2017","M2",15.96,8.14,129.91]
["3.3","REMOÇÃO DE JANELAS, DE FORMA MANUAL, SEM REAPROVEITAMENTO. AF_12/2017","M2",15,30.15,452.25]
["3.4","REMOÇÃO DE TELHAS, DE FIBROCIMENTO, METÁLICA E CERÂMICA, DE FORMA MANUAL, SEM REAPROVEITAMENTO. AF_12/2017","M2",170.68,3.12,532.52]
["3.5","REMOÇÃO DE LOUÇAS, DE FORMA MANUAL, SEM REAPROVEITAMENTO. AF_12/2017","UN",6,10.86,65.16]
["3.6","REMOÇÃO DE TUBULAÇÕES (TUBOS E CONEXÕES) DE ÁGUA FRIA, DE FORMA MANUAL, SEM REAPROVEITAMENTO. AF_12/2017","M",50,0.43,21.5]
["3.7","LIMPEZA MANUAL DE VEGETAÇÃO EM TERRENO COM ENXADA.AF_05/2018","M2",173.34,3.05,528.69000000000005]
["3.8","LIMPEZA DE SUPERFÍCIE COM JATO DE ALTA PRESSÃO. AF_04/2019","M2",500,1.73,{"$f":"ROUND(D33*E33,2)","v":865}]
["3.9","DEMOLIÇÃO DE REVESTIMENTO CERÂMICO, DE FORMA MANUAL, SEM REAPROVEITAMENTO. AF_12/2017","M2",60.95,19.96,1216.56]
["3.10","REPARO EM PAREDE - INCLUSO RASGO EM ALVENARIA",null,24,29.58,709.92]
["3.11","DEMOLIÇÃO DE PISO GRANILITE, DE FORMA MECANIZADA COM MARTELETE, SEM REAPROVEITAMENTO. AF_12/2017","M2",145,10.45,1515.25]
["3.12","DEMOLIÇÃO DE PILARES E VIGAS EM CONCRETO ARMADO, DE FORMA MECANIZADA COM MARTELETE, SEM REAPROVEITAMENTO. AF_12/2017","M3",5.8,243.62,{"$f":"ROUND(D37*E37,2)","v":1413}]
["3.13","DEMOLIÇÃO DE ARGAMASSAS, DE FORMA MANUAL, SEM REAPROVEITAMENTO. AF_12/2017","M2",152,2.91,{"$f":"ROUND(D38*E38,2)","v":442.32}]
["3.14","CARGA, MANOBRA E DESCARGA DE ENTULHO EM CAMINHÃO BASCULANTE 6 M³ - CARGA COM ESCAVADEIRA HIDRÁULICA  (CAÇAMBA DE 0,80 M³ / 111 HP) E DESCARGA LIVRE (UNIDADE: M3). AF_07/2020","M3",55,7.76,426.8]
["3.15","TRANSPORTE COM CAMINHÃO BASCULANTE DE 10 M³, EM VIA URBANA PAVIMENTADA, DMT ATÉ 30 KM (UNIDADE: M3XKM). AF_07/2020","M3XKM",825,2.13,{"$f":"ROUND(D40*E40,2)","v":1757.25}]
[]
[4,"FECHAMENTO",null,null,null,{"$f":"SUBTOTAL(9,F43:F45)","v":3309.67}]
["4.1","VERGA MOLDADA IN LOCO COM UTILIZAÇÃO DE BLOCOS CANALETA PARA JANELAS COM MAIS DE 1,5 M DE VÃO. AF_03/2016","M",27,52.39,{"$f":"ROUND(D43*E43,2)","v":1414.53}]
["4.2","CONTRAVERGA MOLDADA IN LOCO EM CONCRETO PARA VÃOS DE MAIS DE 1,5 M DE COMPRIMENTO. AF_03/2016","M",16.2,86.62,1403.24]
["4.3","ALVENARIA DE VEDAÇÃO DE BLOCOS CERÂMICOS FURADOS NA HORIZONTAL DE 9X19X19CM (ESPESSURA 9CM) DE PAREDES COM ÁREA LÍQUIDA MENOR QUE 6M² SEM VÃOS E ARGAMASSA DE ASSENTAMENTO COM PREPARO EM BETONEIRA. AF_06/2014","M2",5,98.38,491.9]
[]
[5,"REVESTIMENTO INTERNO E EXTERNO",null,null,null,{"$f":"SUBTOTAL(9,F48:F52)","v":22968.3}]
["5.1","CHAPISCO APLICADO EM ALVENARIA (SEM PRESENÇA DE VÃOS) E ESTRUTURAS DE CONCRETO DE FACHADA, COM COLHER DE PEDREIRO.  ARGAMASSA TRAÇO 1:3 COM PREPARO EM BETONEIRA 400L. AF_06/2014","M2",247.1,6.3,{"$f":"ROUND(D48*E48,2)","v":1556.73}]
["5.2","EMBOÇO OU MASSA ÚNICA EM ARGAMASSA TRAÇO 1:2:8, PREPARO MANUAL, APLICADA MANUALMENTE NAS PAREDES INTERNAS DA SACADA, ESPESSURA DE 25 MM, SEM USO DE TELA METÁLICA DE REFORÇO CONTRA FISSURAÇÃO. AF_06/2014","M2",152,70.12,{"$f":"ROUND(D49*E49,2)","v":10658.24}]
["5.3","EMBOÇO, PARA RECEBIMENTO DE CERÂMICA, EM ARGAMASSA TRAÇO 1:2:8, PREPARO MECÂNICO COM BETONEIRA 400L, APLICADO MANUALMENTE EM FACES INTERNAS DE PAREDES, PARA AMBIENTE COM ÁREA ENTRE 5M2 E 10M2, ESPESSURA DE 20MM, COM EXECUÇÃO DE TALISCAS. AF_06/2014","M2",95.1,32.700000000000003,3109.77]
["5.4","APLICAÇÃO MANUAL DE FUNDO SELADOR ACRÍLICO EM PAREDES EXTERNAS DE CASAS. AF_06/2014","M2",152,2.4300000000000002,{"$f":"ROUND(D51*E51,2)","v":369.36}]
["5.5","REVESTIMENTO CERÂMICO PARA PAREDES INTERNAS COM PLACAS TIPO ESMALTADA EXTRA  DE DIMENSÕES 33X45 CM APLICADAS EM AMBIENTES DE ÁREA MAIOR QUE 5 M² A MEIA ALTURA DAS PAREDES. AF_06/2014","M2",95.1,76.489999999999995,7274.2]
[]
[6,"COBERTURA",null,null,null,{"$f":"SUBTOTAL(9,F55:F62)","v":45262.32}]
["6.1","TRAMA DE AÇO COMPOSTA POR TERÇAS PARA TELHADOS DE ATÉ 2 ÁGUAS PARA TELHA ESTRUTURAL DE FIBROCIMENTO, INCLUSO TRANSPORTE VERTICAL. AF_07/2019","M2",205.06,65.349999999999994,{"$f":"ROUND(D55*E55,2)","v":13400.67}]
["6.2","TELHAMENTO COM TELHA ONDULADA DE FIBROCIMENTO E = 6 MM, COM RECOBRIMENTO LATERAL DE 1 1/4 DE ONDA PARA TELHADO COM INCLINAÇÃO MÁXIMA DE 10°, COM ATÉ 2 ÁGUAS, INCLUSO IÇAMENTO. AF_07/2019","M2",205.06,61.92,12697.32]
["6.3","FORRO EM RÉGUAS DE PVC, FRISADO, PARA AMBIENTES RESIDENCIAIS, INCLUSIVE ESTRUTURA DE FIXAÇÃO. AF_05/2017_P","M2",204.04,68.31,13937.97]
["6.4","CUMEEIRA PARA TELHA DE FIBROCIMENTO ONDULADA E = 6 MM, INCLUSO ACESSÓRIOS DE FIXAÇÃO E IÇAMENTO. AF_07/2019","M",17.053000000000001,75.709999999999994,{"$f":"ROUND(D58*E58,2)","v":1291.08}]
["6.5","CALHA DE BEIRAL, SEMICIRCULAR DE PVC, DIAMETRO 125 MM, INCLUINDO CABECEIRAS, EMENDAS, BOCAIS, SUPORTES E VEDAÇÕES, EXCLUINDO CONDUTORES, INCLUSO TRANSPORTE VERTICAL. AF_07/2019","M",18,73.48,{"$f":"ROUND(D59*E59,2)","v":1322.64}]
["6.6","TUBO PVC, SÉRIE R, ÁGUA PLUVIAL, DN 100 MM, FORNECIDO E INSTALADO EM CONDUTORES VERTICAIS DE ÁGUAS PLUVIAIS. AF_12/2014","M",12,47.8,573.6]
["6.7","JOELHO 90 GRAUS, PVC, SERIE R, ÁGUA PLUVIAL, DN 100 MM, JUNTA ELÁSTICA, FORNECIDO E INSTALADO EM RAMAL DE ENCAMINHAMENTO. AF_12/2014","UN",6,49.04,294.24]
["6.8","ACABAMENTO DE BEIRAL METÁLICO HORIZONTAL L=20CM, COM PINTURA, FORNECIMENTO E INSTALAÇÃO","M",60,29.08,1744.8]
[]
[7,"PISO",null,null,null,{"$f":"SUBTOTAL(9,F65:F69)","v":22682.11}]
["7.1","PISO EM GRANILITE, MARMORITE OU GRANITINA EM AMBIENTES INTERNOS. AF_09/2020","M2",140.35,46.11,{"$f":"ROUND(D65*E65,2)","v":6471.54}]
["7.2","CONTRAPISO EM ARGAMASSA TRAÇO 1:4 (CIMENTO E AREIA), PREPARO MECÂNICO COM BETONEIRA 400 L, APLICADO EM ÁREAS SECAS SOBRE LAJE, NÃO ADERIDO, ESPESSURA 5CM. AF_06/2014","M2",140.35,44.4,{"$f":"ROUND(D66*E66,2)","v":6231.54}]
["7.3","IMPERMEABILIZAÇÃO DE SUPERFÍCIE COM MEMBRANA À BASE DE RESINA ACRÍLICA, 3 DEMÃOS. AF_06/2018","M2",140.35,43.12,6051.89]
["7.4","EXECUÇÃO DE PASSEIO (CALÇADA) OU PISO DE CONCRETO COM CONCRETO MOLDADO IN LOCO, USINADO, ACABAMENTO CONVENCIONAL, ESPESSURA 6 CM, ARMADO. AF_07/2016","M2",26.81,120.54,3231.68]
["7.5","REVESTIMENTO CERÂMICO PARA PISO COM PLACAS TIPO ESMALTADA EXTRA DE DIMENSÕES 35X35 CM APLICADA EM AMBIENTES DE ÁREA ENTRE 5 M2 E 10 M2. AF_06/2014","M2",13.4,51.9,695.46]
[]
[8,"ESQUADRIA",null,null,null,{"$f":"SUBTOTAL(9,F72:F76)","v":22856.620000000003}]
["8.1","PORTA DE ALUMÍNIO DE ABRIR COM LAMBRI, COM GUARNIÇÃO, FIXAÇÃO COM PARAFUSOS - FORNECIMENTO E INSTALAÇÃO. AF_12/2019","M2",9.66,843.86,{"$f":"ROUND(D72*E72,2)","v":8151.69}]
["8.2","PORTA DE CORRER DE ALUMÍNIO, COM DUAS FOLHAS PARA VIDRO, INCLUSO VIDRO LISO INCOLOR, FECHADURA E PUXADOR, SEM ALIZAR. AF_12/2019","M2",6.3,487.78,3073.01]
["8.3","JANELA DE ALUMÍNIO TIPO MAXIM-AR, COM VIDROS, BATENTE E FERRAGENS. EXCLUSIVE ALIZAR, ACABAMENTO E CONTRAMARCO. FORNECIMENTO E INSTALAÇÃO. AF_12/2019","M2",3.5,972.76,3404.66]
["8.4","JANELA DE ALUMÍNIO DE CORRER COM 2 FOLHAS PARA VIDROS, COM VIDROS, BATENTE, ACABAMENTO COM ACETATO OU BRILHANTE E FERRAGENS. EXCLUSIVE ALIZAR E CONTRAMARCO. FORNECIMENTO E INSTALAÇÃO. AF_12/2019","M2",9,636.1,5724.9]
["8.5","PORTAO DE CORRER EM CHAPA TIPO PAINEL LAMBRIL QUADRADO, COM PORTA SOCIAL COMPLETA INCLUIDA, COM REQUADRO, ACABAMENTO NATURAL, COM TRILHOS E ROLDANAS. FORNECIMENTO E INSTALAÇÃO.","M2",2,1251.18,2502.36]
[]
[9,"PINTURA INTERNA E EXTERNA",null,null,null,{"$f":"SUBTOTAL(9,F79:F92)","v":52405.06}]
["9.1","INTERNA",null,null,null,{"$f":"SUBTOTAL(9,F80:F83)","v":22107.75}]
["9.1.1","LIXAMENTO DE SUPERFICIE DE CONCRETO APARENTE","M2",375,6.12,{"$f":"ROUND(D80*E80,2)","v":2295}]
["9.1.2","APLICAÇÃO MANUAL DE MASSA ACRÍLICA EM PAREDES EXTERNAS DE CASAS, DUAS DEMÃOS. AF_05/2017","M2",375,26.94,{"$f":"ROUND(D81*E81,2)","v":10102.5}]
["9.1.3","PINTURA COM TINTA ALQUÍDICA DE ACABAMENTO (ESMALTE SINTÉTICO BRILHANTE) APLICADA A ROLO OU PINCEL SOBRE SUPERFÍCIES METÁLICAS (EXCETO PERFIL) EXECUTADO EM OBRA (02 DEMÃOS). AF_01/2020","M2",150,42.79,6418.5]
["9.1.4","APLICAÇÃO MANUAL DE PINTURA COM TINTA LÁTEX ACRÍLICA EM PAREDES, DUAS DEMÃOS. AF_06/2014","M2",225,14.63,3291.75]
[]
["9.2","EXTERNA",null,null,null,{"$f":"SUBTOTAL(9,F86:F89)","v":25718.559999999998}]
["9.2.1","LIXAMENTO DE SUPERFICIE DE CONCRETO APARENTE","M2",472,6.12,{"$f":"ROUND(D86*E86,2)","v":2888.64}]
["9.2.2","APLICAÇÃO MANUAL DE MASSA ACRÍLICA EM PAREDES EXTERNAS DE CASAS, DUAS DEMÃOS. AF_05/2017","M2",432,26.94,{"$f":"ROUND(D87*E87,2)","v":11638.08}]
["9.2.3","PINTURA COM TINTA ALQUÍDICA DE ACABAMENTO (ESMALTE SINTÉTICO BRILHANTE) APLICADA A ROLO OU PINCEL SOBRE SUPERFÍCIES METÁLICAS (EXCETO PERFIL) EXECUTADO EM OBRA (02 DEMÃOS). AF_01/2020","M2",173,42.79,7402.67]
["9.2.4","APLICAÇÃO MANUAL DE PINTURA COM TINTA LÁTEX ACRÍLICA EM PAREDES, DUAS DEMÃOS. AF_06/2014","M2",259,14.63,3789.17]
[]
["9.3","DIVERSOS",null,null,null,{"$f":"SUBTOTAL(9,F92:F92)","v":4578.75}]
["9.3.1","PINTURA ACRILICA EM PISO CIMENTADO DUAS DEMAOS","M2",275,16.649999999999999,{"$f":"ROUND(D92*E92,2)","v":4578.75}]
[]
[10,"INSTALAÇÕES SANITÁRIAS",null,null,null,{"$f":"SUBTOTAL(9,F95:F115)","v":14593.99}]
["10.1","CAIXA ENTERRADA HIDRÁULICA RETANGULAR EM ALVENARIA COM TIJOLOS CERÂMICOS MACIÇOS, DIMENSÕES INTERNAS: 0,6X0,6X0,6 M PARA REDE DE ESGOTO. AF_12/2020","UN",5,659.09,{"$f":"ROUND(D95*E95,2)","v":3295.45}]
["10.2","CAIXA SIFONADA, PVC, DN 100 X 100 X 50 MM, JUNTA ELÁSTICA, FORNECIDA E INSTALADA EM RAMAL DE DESCARGA OU EM RAMAL DE ESGOTO SANITÁRIO. AF_12/2014","UN",2,37.26,74.52]
["10.3","SIFÃO DO TIPO GARRAFA EM METAL CROMADO 1 X 1.1/2\u0094 - FORNECIMENTO E INSTALAÇÃO. AF_01/2020","UN",2,192,{"$f":"ROUND(D97*E97,2)","v":384}]
["10.4","VÁLVULA EM METAL CROMADO 1.1/2\u0094 X 1.1/2\u0094 PARA TANQUE OU LAVATÓRIO, COM OU SEM LADRÃO - FORNECIMENTO E INSTALAÇÃO. AF_01/2020","UN",2,34.32,{"$f":"ROUND(D98*E98,2)","v":68.64}]
["10.5","CURVA CURTA 90 GRAUS, PVC, SERIE NORMAL, ESGOTO PREDIAL, DN 40 MM, JUNTA SOLDÁVEL, FORNECIDO E INSTALADO EM RAMAL DE DESCARGA OU RAMAL DE ESGOTO SANITÁRIO. AF_12/2014","UN",2,11.44,22.88]
["10.6","JOELHO 45 GRAUS, PVC, SERIE NORMAL, ESGOTO PREDIAL, DN 100 MM, JUNTA ELÁSTICA, FORNECIDO E INSTALADO EM RAMAL DE DESCARGA OU RAMAL DE ESGOTO SANITÁRIO. AF_12/2014","UN",2,28.28,56.56]
["10.7","JOELHO 45 GRAUS, PVC, SERIE NORMAL, ESGOTO PREDIAL, DN 40 MM, JUNTA SOLDÁVEL, FORNECIDO E INSTALADO EM RAMAL DE DESCARGA OU RAMAL DE ESGOTO SANITÁRIO. AF_12/2014","UN",2,7.81,15.62]
["10.8","JOELHO 45 GRAUS, PVC, SERIE NORMAL, ESGOTO PREDIAL, DN 50 MM, JUNTA ELÁSTICA, FORNECIDO E INSTALADO EM RAMAL DE DESCARGA OU RAMAL DE ESGOTO SANITÁRIO. AF_12/2014","UN",2,13.54,27.08]
["10.9","JOELHO 90 GRAUS, PVC, SERIE NORMAL, ESGOTO PREDIAL, DN 100 MM, JUNTA ELÁSTICA, FORNECIDO E INSTALADO EM RAMAL DE DESCARGA OU RAMAL DE ESGOTO SANITÁRIO. AF_12/2014","UN",4,28.34,{"$f":"ROUND(D103*E103,2)","v":113.36}]
["10.10","JOELHO 90 GRAUS, PVC, SERIE NORMAL, ESGOTO PREDIAL, DN 40 MM, JUNTA SOLDÁVEL, FORNECIDO E INSTALADO EM RAMAL DE DESCARGA OU RAMAL DE ESGOTO SANITÁRIO. AF_12/2014","UN",2,10.72,21.44]
["10.11","JUNÇÃO SIMPLES, PVC, SERIE NORMAL, ESGOTO PREDIAL, DN 100 X 100 MM, JUNTA ELÁSTICA, FORNECIDO E INSTALADO EM SUBCOLETOR AÉREO DE ESGOTO SANITÁRIO. AF_12/2014","UN",2,54.54,109.08]
["10.12","TUBO PVC, SERIE NORMAL, ESGOTO PREDIAL, DN 100 MM, FORNECIDO E INSTALADO EM RAMAL DE DESCARGA OU RAMAL DE ESGOTO SANITÁRIO. AF_12/2014","M",44.08,58.35,2572.0700000000002]
["10.13","TUBO PVC, SERIE NORMAL, ESGOTO PREDIAL, DN 40 MM, FORNECIDO E INSTALADO EM RAMAL DE DESCARGA OU RAMAL DE ESGOTO SANITÁRIO. AF_12/2014","M",3.2,19.27,61.66]
["10.14","TUBO PVC, SERIE NORMAL, ESGOTO PREDIAL, DN 50 MM, FORNECIDO E INSTALADO EM RAMAL DE DESCARGA OU RAMAL DE ESGOTO SANITÁRIO. AF_12/2014","M",3.48,29.61,103.04]
["10.15","CURVA 90 GRAUS, PVC, SOLDÁVEL, DN 50MM, INSTALADO EM PRUMADA DE ÁGUA - FORNECIMENTO E INSTALAÇÃO. AF_12/2014","UN",2,26.62,53.24]
["10.16","JOELHO 90 GRAUS, PVC, SERIE NORMAL, ESGOTO PREDIAL, DN 50 MM, JUNTA ELÁSTICA, FORNECIDO E INSTALADO EM RAMAL DE DESCARGA OU RAMAL DE ESGOTO SANITÁRIO. AF_12/2014","UN",4,12.86,51.44]
["10.17","TUBO PVC, SERIE NORMAL, ESGOTO PREDIAL, DN 50 MM, FORNECIDO E INSTALADO EM RAMAL DE DESCARGA OU RAMAL DE ESGOTO SANITÁRIO. AF_12/2014","M",3,29.61,88.83]
["10.18","TE, PVC, SERIE NORMAL, ESGOTO PREDIAL, DN 50 X 50 MM, JUNTA ELÁSTICA, FORNECIDO E INSTALADO EM RAMAL DE DESCARGA OU RAMAL DE ESGOTO SANITÁRIO. AF_12/2014","UN",2,24.19,48.38]
["10.19","TANQUE SÉPTICO CIRCULAR, EM CONCRETO PRÉ-MOLDADO, DIÂMETRO INTERNO = 1,10 M, ALTURA INTERNA = 2,50 M, VOLUME ÚTIL: 2138,2 L (PARA 5 CONTRIBUINTES). AF_12/2020","UN",1,2275.88,{"$f":"ROUND(D113*E113,2)","v":2275.88}]
["10.20","FILTRO ANAERÓBIO CIRCULAR, EM CONCRETO PRÉ-MOLDADO, DIÂMETRO INTERNO = 1,10 M, ALTURA INTERNA = 1,50 M, VOLUME ÚTIL: 1140,4 L (PARA 5 CONTRIBUINTES). AF_12/2020","UN",1,1918.14,{"$f":"ROUND(D114*E114,2)","v":1918.14}]
["10.21","SUMIDOURO CIRCULAR, EM CONCRETO PRÉ-MOLDADO, DIÂMETRO INTERNO = 1,88 M, ALTURA INTERNA = 2,00 M, ÁREA DE INFILTRAÇÃO: 13,1 M² (PARA 5 CONTRIBUINTES). AF_12/2020","UN",1,3232.68,{"$f":"ROUND(D115*E115,2)","v":3232.68}]
[]
[11,"INSTALAÇÕES HIDRÁULICAS",null,null,null,{"$f":"SUBTOTAL(9,F118:F151)","v":17769.84}]
["11.1","ALIMENTAÇÃO",null,null,null,{"$f":"SUBTOTAL(9,F119:F146)","v":14270.52}]
["11.1.1","BOMBA CENTRÍFUGA, TRIFÁSICA, 1 CV OU 0,99 HP, HM 14 A 40 M, Q 0,6 A 8,4 M3/H - FORNECIMENTO E INSTALAÇÃO. AF_12/2020","UN",1,1684.21,{"$f":"ROUND(D119*E119,2)","v":1684.21}]
["11.1.2","REGISTRO DE GAVETA BRUTO, LATÃO, ROSCÁVEL, 1\u0094, INSTALADO EM RESERVAÇÃO DE ÁGUA DE EDIFICAÇÃO QUE POSSUA RESERVATÓRIO DE FIBRA/FIBROCIMENTO \u0096 FORNECIMENTO E INSTALAÇÃO. AF_06/2016","UN",2,62.99,125.98]
["11.1.3","REGISTRO DE GAVETA BRUTO, LATÃO, ROSCÁVEL, 1 1/2\u0094, INSTALADO EM RESERVAÇÃO DE ÁGUA DE EDIFICAÇÃO QUE POSSUA RESERVATÓRIO DE FIBRA/FIBROCIMENTO \u0096 FORNECIMENTO E INSTALAÇÃO. AF_06/2016","UN",1,85.19,85.19]
["11.1.4","REGISTRO DE GAVETA BRUTO, LATÃO, ROSCÁVEL, 3/4\", COM ACABAMENTO E CANOPLA CROMADOS. FORNECIDO E INSTALADO EM RAMAL DE ÁGUA. AF_12/2014","UN",7,57.63,403.41]
["11.1.5","REGISTRO DE ESFERA, PVC, ROSCÁVEL, 3/4\", FORNECIDO E INSTALADO EM RAMAL DE ÁGUA. AF_03/2015","UN",1,24.91,24.91]
["11.1.6","ADAPTADOR CURTO COM BOLSA E ROSCA PARA REGISTRO, PVC, SOLDÁVEL, DN 20MM X 1/2\u0094, INSTALADO EM RAMAL OU SUB-RAMAL DE ÁGUA - FORNECIMENTO E INSTALAÇÃO. AF_12/2014","UN",4,5.76,23.04]
["11.1.7","JOELHO ROSCA FÊMEA, COM BASE FIXA, METÁLICO, PARA INSTALAÇÕES EM PEX, DN 25MM X 3/4\", CONEXÃO POR ANEL DESLIZANTE \u0096 FORNECIMENTO E INSTALAÇÃO. AF_06/2015","UN",3,47.25,141.75]
["11.1.8","JOELHO DE TRANSIÇÃO, 90 GRAUS, CPVC, SOLDÁVEL, DN 22MM X 1/2\", INSTALADO EM RAMAL OU SUB-RAMAL DE ÁGUA - FORNECIMENTO E INSTALAÇÃO. AF_12/2014","UN",4,33.71,134.84]
["11.1.9","ADAPTADOR COM FLANGES LIVRES, PVC, SOLDÁVEL, DN  25 MM X 3/4 , INSTALADO EM RESERVAÇÃO DE ÁGUA DE EDIFICAÇÃO QUE POSSUA RESERVATÓRIO DE FIBRA/FIBROCIMENTO   FORNECIMENTO E INSTALAÇÃO. AF_06/2016","UN",2,27.47,54.94]
["11.1.10","ADAPTADOR COM FLANGES LIVRES, PVC, SOLDÁVEL, DN 32 MM X 1 , INSTALADO EM RESERVAÇÃO DE ÁGUA DE EDIFICAÇÃO QUE POSSUA RESERVATÓRIO DE FIBRA/FIBROCIMENTO   FORNECIMENTO E INSTALAÇÃO. AF_06/2016","UN",4,35.44,141.76]
["11.1.11","ADAPTADOR COM FLANGES LIVRES, PVC, SOLDÁVEL, DN 50 MM X 1 1/2 , INSTALADO EM RESERVAÇÃO DE ÁGUA DE EDIFICAÇÃO QUE POSSUA RESERVATÓRIO DE FIBRA/FIBROCIMENTO   FORNECIMENTO E INSTALAÇÃO. AF_06/2016","UN",2,67.099999999999994,134.19999999999999]
["11.1.12","ADAPTADOR CURTO COM BOLSA E ROSCA PARA REGISTRO, PVC, SOLDÁVEL, DN 25MM X 3/4\u0094, INSTALADO EM PRUMADA DE ÁGUA - FORNECIMENTO E INSTALAÇÃO. AF_12/2014","UN",15,4.18,{"$f":"ROUND(D130*E130,2)","v":62.7}]
["11.1.13","ADAPTADOR CURTO COM BOLSA E ROSCA PARA REGISTRO, PVC, SOLDÁVEL, DN 32MM X 1\u0094, INSTALADO EM PRUMADA DE ÁGUA - FORNECIMENTO E INSTALAÇÃO. AF_12/2014","UN",4,6.18,24.72]
["11.1.14","ADAPTADOR CURTO COM BOLSA E ROSCA PARA REGISTRO, PVC, SOLDÁVEL, DN 50MM X 1.1/2\u0094, INSTALADO EM PRUMADA DE ÁGUA - FORNECIMENTO E INSTALAÇÃO. AF_12/2014","UN",2,12.2,24.4]
["11.1.15","CURVA 90 GRAUS, PVC, SOLDÁVEL, DN 25MM, INSTALADO EM RAMAL DE DISTRIBUIÇÃO DE ÁGUA - FORNECIMENTO E INSTALAÇÃO. AF_12/2014","UN",2,9.02,18.04]
["11.1.16","CURVA 90 GRAUS, PVC, SOLDÁVEL, DN 50MM, INSTALADO EM PRUMADA DE ÁGUA - FORNECIMENTO E INSTALAÇÃO. AF_12/2014","UN",4,26.62,106.48]
["11.1.17","BUCHA DE REDUÇÃO, PPR, 32 X 25, CLASSE PN 25, INSTALADO EM PRUMADA DE ÁGUA \u0096 FORNECIMENTO E INSTALAÇÃO . AF_06/2015","UN",1,6.88,6.88]
["11.1.18","JOELHO 90 GRAUS, PVC, SOLDÁVEL, DN 25MM, INSTALADO EM PRUMADA DE ÁGUA - FORNECIMENTO E INSTALAÇÃO. AF_12/2014","UN",9,4.87,43.83]
["11.1.19","JOELHO 90 GRAUS, PVC, SOLDÁVEL, DN 32MM, INSTALADO EM PRUMADA DE ÁGUA - FORNECIMENTO E INSTALAÇÃO. AF_12/2014","UN",4,7.66,30.64]
["11.1.20","JOELHO 90 GRAUS, PVC, SOLDÁVEL, DN 50MM, INSTALADO EM PRUMADA DE ÁGUA - FORNECIMENTO E INSTALAÇÃO. AF_12/2014","UN",1,15.17,15.17]
["11.1.21","TUBO, PVC, SOLDÁVEL, DN 25MM, INSTALADO EM PRUMADA DE ÁGUA - FORNECIMENTO E INSTALAÇÃO. AF_12/2014","M",68.36,5.41,{"$f":"ROUND(D139*E139,2)","v":369.83}]
["11.1.22","TUBO, PVC, SOLDÁVEL, DN 32MM, INSTALADO EM PRUMADA DE ÁGUA - FORNECIMENTO E INSTALAÇÃO. AF_12/2014","M",4.9800000000000004,11.46,57.07]
["11.1.23","TUBO, PVC, SOLDÁVEL, DN 50MM, INSTALADO EM PRUMADA DE ÁGUA - FORNECIMENTO E INSTALAÇÃO. AF_12/2014","M",10.91,18.989999999999998,207.18]
["11.1.24","JOELHO DE REDUCAO, PVC, ROSCAVEL COM BUCHA DE LATAO, 90 GRAUS,  25 MM -1/2\", PARA AGUA FRIA PREDIAL","UN",2,31.46,62.92]
["11.1.25","CONJUNTO DE BASE E FECHAMENTO PARA RESERVATORIO - INCLUSO CONCRETAGEM DE BASE, FECHAMENTO COM TELA DE ARAME EM MOURÃO DE CONCRETO","UN",1,4057.11,4057.11]
["11.1.26","RESERVATÓRIO 5000 LITROS","UN",1,2414.69,2414.69]
["11.1.27","ESTRUTURA PRÉ -MOLDADA DE 5 M PARA CAIXA D'AGUA 2000L. INCLUSO CAIXA D'ÁGUA DE 2000 LITROS E  INSTALAÇÃO.","UN",1,2912.76,2912.76]
["11.1.28","HIDROMETRO MULTIJATO, VAZAO MAXIMA DE 20,0 M3/H, DE 1 1/2\". FORNECIMENTO E INSTALAÇÃO","UN    ",1,901.87,901.87]
[]
["11.2","LOUÇAS E METAIS",null,null,null,{"$f":"SUBTOTAL(9,F149:F151)","v":3499.3199999999997}]
["11.2.1","VASO SANITÁRIO SIFONADO COM CAIXA ACOPLADA LOUÇA BRANCA, INCLUSO ENGATE FLEXÍVEL EM PLÁSTICO BRANCO, 1/2  X 40CM - FORNECIMENTO E INSTALAÇÃO. AF_01/2020","UN",4,468.32,{"$f":"ROUND(D149*E149,2)","v":1873.28}]
["11.2.2","LAVATÓRIO LOUÇA BRANCA COM COLUNA, 45 X 55CM OU EQUIVALENTE, PADRÃO MÉDIO, INCLUSO SIFÃO TIPO GARRAFA, VÁLVULA E ENGATE FLEXÍVEL DE 40CM EM METAL CROMADO, COM TORNEIRA CROMADA DE MESA, PADRÃO MÉDIO - FORNECIMENTO E INSTALAÇÃO. AF_01/2020","UN",2,709.52,1419.04]
["11.2.3","ASSENTO SANITÁRIO CONVENCIONAL - FORNECIMENTO E INSTALACAO. AF_01/2020","UN",4,51.75,207]
[]
[12,"INSTALAÇÕES ELÉTRICAS",null,null,null,{"$f":"SUBTOTAL(9,F154:F181)","v":16808.280000000002}]
["12.1","CAIXA RETANGULAR 4\" X 2\" MÉDIA (1,30 M DO PISO), PVC, INSTALADA EM PAREDE - FORNECIMENTO E INSTALAÇÃO. AF_12/2015","UN",4,13.63,{"$f":"ROUND(D154*E154,2)","v":54.52}]
["12.2","CAIXA RETANGULAR 4\" X 2\" BAIXA (0,30 M DO PISO), PVC, INSTALADA EM PAREDE - FORNECIMENTO E INSTALAÇÃO. AF_12/2015","UN",8,9.1199999999999992,72.959999999999994]
["12.3","CAIXA RETANGULAR 4\" X 2\" ALTA (2,00 M DO PISO), PVC, INSTALADA EM PAREDE - FORNECIMENTO E INSTALAÇÃO. AF_12/2015","UN",8,25.69,205.52]
["12.4","CAIXA OCTOGONAL 3\" X 3\", PVC, INSTALADA EM LAJE - FORNECIMENTO E INSTALAÇÃO. AF_12/2015","UN",11,10.130000000000001,111.43]
["12.5","CABO DE COBRE FLEXÍVEL ISOLADO, 2,5 MM², ANTI-CHAMA 450/750 V, PARA CIRCUITOS TERMINAIS - FORNECIMENTO E INSTALAÇÃO. AF_12/2015","M",670.4,4.8899999999999997,3278.26]
["12.6","CABO DE COBRE FLEXÍVEL ISOLADO, 4 MM², ANTI-CHAMA 450/750 V, PARA CIRCUITOS TERMINAIS - FORNECIMENTO E INSTALAÇÃO. AF_12/2015","M",97.3,8.16,793.97]
["12.7","CABO DE COBRE FLEXÍVEL ISOLADO, 16 MM², 0,6/1,0 KV, PARA REDE AÉREA DE DISTRIBUIÇÃO DE ENERGIA ELÉTRICA DE BAIXA TENSÃO - FORNECIMENTO E INSTALAÇÃO. AF_07/2020","M",22.8,22.29,508.21]
["12.8","CABO DE COBRE FLEXÍVEL ISOLADO, 25 MM², 0,6/1,0 KV, PARA REDE AÉREA DE DISTRIBUIÇÃO DE ENERGIA ELÉTRICA DE BAIXA TENSÃO - FORNECIMENTO E INSTALAÇÃO. AF_07/2020","M",68.400000000000006,33.9,2318.7600000000002]
["12.9","INTERRUPTOR SIMPLES (3 MÓDULOS), 10A/250V, INCLUINDO SUPORTE E PLACA - FORNECIMENTO E INSTALAÇÃO. AF_12/2015","UN",1,52.56,52.56]
["12.10","INTERRUPTOR SIMPLES (1 MÓDULO) COM 1 TOMADA DE EMBUTIR 2P+T 10 A,  INCLUINDO SUPORTE E PLACA - FORNECIMENTO E INSTALAÇÃO. AF_12/2015","UN",3,42.99,128.97]
["12.11","TOMADA BAIXA DE EMBUTIR (1 MÓDULO), 2P+T 10 A, INCLUINDO SUPORTE E PLACA - FORNECIMENTO E INSTALAÇÃO. AF_12/2015","UN",5,25.67,128.35]
["12.12","TOMADA BAIXA DE EMBUTIR (2 MÓDULOS), 2P+T 10 A, INCLUINDO SUPORTE E PLACA - FORNECIMENTO E INSTALAÇÃO. AF_12/2015","UN",4,41.15,164.6]
["12.13","TOMADA ALTA DE EMBUTIR (1 MÓDULO), 2P+T 10 A, INCLUINDO SUPORTE E PLACA - FORNECIMENTO E INSTALAÇÃO. AF_12/2015","UN",9,37.229999999999997,335.07]
["12.14","RASGO EM ALVENARIA PARA ELETRODUTOS COM DIAMETROS MENORES OU IGUAIS A 40 MM. AF_05/2015","M",144,6.08,875.52]
["12.15","VENTILADOR DE TETO SIMPLES - FORNECIMENTO E INSTALAÇÃO","UN",6,198.57,1191.42]
["12.16","VARIADOR DE VELOCIDADE PARA VENTILADOR 127V, 150W + 2 INTERRUPTORES PARALELOS, PARA REVERSAO E LAMPADA, CONJUNTO MONTADO PARA EMBUTIR 4\" X 2\" (PLACA + SUPORTE + MODULOS)","UN    ",6,66.2,{"$f":"ROUND(D169*E169,2)","v":397.2}]
["12.17","DISJUNTOR MONOPOLAR TIPO DIN, CORRENTE NOMINAL DE 10A - FORNECIMENTO E INSTALAÇÃO. AF_10/2020","UN",1,14.01,14.01]
["12.18","DISJUNTOR MONOPOLAR TIPO DIN, CORRENTE NOMINAL DE 16A - FORNECIMENTO E INSTALAÇÃO. AF_10/2020","UN",4,14.57,58.28]
["12.19","DISJUNTOR BIPOLAR TIPO DIN, CORRENTE NOMINAL DE 20A - FORNECIMENTO E INSTALAÇÃO. AF_10/2020","UN",2,74.38,148.76]
["12.20","Fornecimento e Instalação de Dispositivo DPS, 1 polo, 175 V, 45 kA","UN",3,137.38999999999999,412.17]
["12.21","Fornecimento e Instalação de Dispositivo residual DR 25A, Fase/Neutro - In 30ma","UN",1,204.04,204.04]
["12.22","ELETRODUTO FLEXÍVEL CORRUGADO, PVC, DN 25 MM (3/4\"), PARA CIRCUITOS TERMINAIS, INSTALADO EM FORRO - FORNECIMENTO E INSTALAÇÃO. AF_12/2015","M",181.8,8.82,{"$f":"ROUND(D175*E175,2)","v":1603.48}]
["12.23","LUMINÁRIA DE EMERGÊNCIA, COM 30 LÂMPADAS LED DE 2 W, SEM REATOR - FORNECIMENTO E INSTALAÇÃO. AF_02/2020","UN",3,27.42,82.26]
["12.24","LUMINARIA LED REFLETOR RETANGULAR BIVOLT, LUZ BRANCA, 50 W","UN    ",2,65.23,130.46]
["12.25","DISJUNTOR TIPO NEMA, MONOPOLAR DE 60 ATE 70A, TENSAO MAXIMA DE 240 V","UN    ",1,50.99,{"$f":"ROUND(D178*E178,2)","v":50.99}]
["12.26","LUMINARIA DE TETO PLAFON/PLAFONIER EM PLASTICO COM BASE E27, POTENCIA 40 W (INCLUI LAMPADA LED) - FORNECIMENTO E INSTALAÇÃO","UN",13,93.5,1215.5]
["12.27","QUADRO DE DISTRIBUIÇÃO BIFÁSICO EM PVC, 36 DISJUNTORES DIN",null,1,670.34,670.34]
["12.28","ENTRADA DE ENERGIA ELÉTRICA, AÉREA, BIFÁSICA, COM CAIXA DE SOBREPOR, CABO DE 10 MM2 E DISJUNTOR DIN 50A (NÃO INCLUSO O POSTE DE CONCRETO). AF_07/2020_P","UN",1,1600.67,1600.67]
[]
[13,"SERVIÇOS COMPLEMENTARES",null,null,null,{"$f":"SUBTOTAL(9,F184:F186)","v":4841.12}]
["13.1","CORRIMÃO SIMPLES, DIÂMETRO EXTERNO = 1 1/2\", EM AÇO GALVANIZADO. AF_04/2019_P","M",16,144.84,{"$f":"ROUND(D184*E184,2)","v":2317.44}]
["13.2","RAMPA DE CONCRETO PARA ACESSO DE PNE (INCINAÇÃO 8%)","M3",3.6359999999999997,615.78,2238.98]
["13.3","LASTRO COM MATERIAL GRANULAR (PEDRA BRITADA N.2), APLICADO EM PISOS OU LAJES SOBRE SOLO, ESPESSURA DE *10 CM*. AF_08/2017","M3",2,142.35,284.7]
[]
[14,"LIMPEZA FINAL DE OBRA",null,null,null,{"$f":"SUBTOTAL(9,F189:F189)","v":738.71}]
["14.1","LIMPEZA DE SUPERFÍCIE COM JATO DE ALTA PRESSÃO. AF_04/2019","M2",427,1.73,{"$f":"ROUND(D189*E189,2)","v":738.71}]
[]
["VALOR TOTAL",null,null,null,null,{"$f":"SUBTOTAL(9,F14:F190)","v":267397.67000000016}]

{"sheet":"CRONOGRAMA FISICO-FINANCEIRO","index":2,"n_rows":29,"n_cols":12,"rows_kept":29,"cut":false,"hidden":false,"merged":[[0,0,2,1],[0,2,2,8],[0,9,1,11],[3,0,3,11],[4,0,4,2],[4,3,4,7],[4,8,4,11],[5,8,5,11],[6,0,6,2],[7,0,7,11],[8,0,8,11],[10,2,10,3],[10,4,10,5],[10,6,10,7],[10,8,10,9],[10,10,10,11],[5,0,5,2],[5,4,5,5],[5,6,5,7]]}
[null,null,"CRONOGRAMA FÍSICO FINANCEIRO",null,null,null,null,null,null,"SPN-FF-004"]
[]
[null,null,null,null,null,null,null,null,null,"Folha:          1 de 1","Revisão:     01","Data: 11/07/19"]
["SESI - SERVIÇO SOCIAL DA INDÚSTRIA"]
["UNIDADE OPERACIONAL: SESI ESCOLA VÁRZEA GRANDE (OBRA REFORMA CENTRO COMUNITÁRIO STA LUZIA)",null,null,"ENDEREÇO: RUA MÁRIO DE ALMEIDA, LOTE 06, SANTA LUZIA",null,null,null,null,"CIDADE: VÁRZEA GRANDE/MT"]
["CONSTRUTORA:",null,null,"VALOR:",{"$f":"C29","v":267397.67},null,"PRAZO: 60 DIAS",null,"PROCESSO:"]
["RESPONSÁVEL TÉCNICO"]
[]
["CRONOGRAMA FÍSICO-FINANCEIRO - OBRA:"]
[]
["ITEM","DESCRIÇÃO","ETAPA TOTAL",null,"30 DIAS",null,"45 DIAS",null,"60 DIAS",null,"TOTAL "]
[null,null,"(R$)","(%)","(R$)","(%)","(R$)","(%)","(R$)","(%)","(R$)","(%)"]
[1,{"$f":"'PLANILHA PADRÃO'!B14","v":"ADMINISTRAÇÃO DE OBRA"},{"$f":"'PLANILHA PADRÃO'!F14","v":20018.48},{"$f":"C13/$C$28","v":7.486407791062652E-2},{"$f":"F13*C13","v":5004.62},0.25,{"$f":"H13*C13","v":5004.62},0.25,{"$f":"J13*C13","v":10009.24},0.5,{"$f":"SUM(E13+G13+I13)","v":20018.48},{"$f":"K13/C13","v":1}]
[2,{"$f":"'PLANILHA PADRÃO'!B18","v":"CANTEIRO DE OBRAS"},{"$f":"'PLANILHA PADRÃO'!F18","v":12916.630000000001},4.8304945963066927E-2,{"$f":"F14*C14","v":3229.1575000000003},0.25,3229.1575000000003,0.25,6458.3150000000005,0.5,12916.630000000001,1]
[3,{"$f":"'PLANILHA PADRÃO'!B25","v":"DEMOLIÇÕES"},{"$f":"'PLANILHA PADRÃO'!F25","v":10226.539999999999},3.8244686275688188E-2,10226.539999999999,1,0,0,0,0,10226.539999999999,1]
[4,{"$f":"'PLANILHA PADRÃO'!B42","v":"FECHAMENTO"},{"$f":"'PLANILHA PADRÃO'!F42","v":3309.67},1.2377332981248492E-2,1654.835,0.5,1654.835,0.5,0,0,3309.67,1]
[5,{"$f":"'PLANILHA PADRÃO'!B47","v":"REVESTIMENTO INTERNO E EXTERNO"},{"$f":"'PLANILHA PADRÃO'!F47","v":22968.3},8.5895662441636086E-2,9187.32,0.4,6890.49,0.3,6890.49,0.3,22968.3,1]
[6,{"$f":"'PLANILHA PADRÃO'!B54","v":"COBERTURA"},{"$f":"'PLANILHA PADRÃO'!F54","v":45262.32},0.16926968735367068,18104.928,0.4,13578.696,0.3,13578.696,0.3,45262.32,1]
[7,{"$f":"'PLANILHA PADRÃO'!B64","v":"PISO"},{"$f":"'PLANILHA PADRÃO'!F64","v":22682.11},8.4825383856186931E-2,2268.2110000000002,0.1,9072.844000000001,0.4,11341.055,0.5,22682.11,1]
[8,{"$f":"'PLANILHA PADRÃO'!B71","v":"ESQUADRIA"},{"$f":"'PLANILHA PADRÃO'!F71","v":22856.620000000003},8.5478007343893478E-2,0,0,11428.310000000001,0.5,11428.310000000001,0.5,22856.620000000003,1]
[9,{"$f":"'PLANILHA PADRÃO'!B78","v":"PINTURA INTERNA E EXTERNA"},{"$f":"'PLANILHA PADRÃO'!F78","v":52405.06},0.19598173761199938,0,0,20962.024000000001,0.4,31443.035999999996,0.6,52405.06,1]
[10,{"$f":"'PLANILHA PADRÃO'!B94","v":"INSTALAÇÕES SANITÁRIAS"},{"$f":"'PLANILHA PADRÃO'!F94","v":14593.99},5.4577850285681254E-2,14593.99,1,0,0,0,0,14593.99,1]
[11,{"$f":"'PLANILHA PADRÃO'!B117","v":"INSTALAÇÕES HIDRÁULICAS"},{"$f":"'PLANILHA PADRÃO'!F117","v":17769.84},6.6454730140318732E-2,17769.84,1,0,0,0,0,17769.84,1]
[12,{"$f":"'PLANILHA PADRÃO'!B153","v":"INSTALAÇÕES ELÉTRICAS"},{"$f":"'PLANILHA PADRÃO'!F153","v":16808.280000000002},6.2858737699546904E-2,8404.1400000000012,0.5,4202.0700000000006,0.25,4202.0700000000006,0.25,16808.280000000002,1]
[13,{"$f":"'PLANILHA PADRÃO'!B183","v":"SERVIÇOS COMPLEMENTARES"},{"$f":"'PLANILHA PADRÃO'!F183","v":4841.12},1.8104570619482212E-2,0,0,1210.28,0.25,3630.84,0.75,4841.12,1]
[14,{"$f":"'PLANILHA PADRÃO'!B188","v":"LIMPEZA FINAL DE OBRA"},{"$f":"'PLANILHA PADRÃO'!F188","v":738.71},2.7625895169542804E-3,0,0,0,0,738.71,1,738.71,1]
[]
[null,"TOTAL",{"$f":"SUM(C13:C26)","v":267397.67},{"$f":"SUM(D13:D26)","v":1},{"$f":"SUM(E13:E26)","v":90443.5815},{"$f":"E28/C29","v":0.33823623631425065},{"$f":"SUM(G13:G26)","v":77233.32650000001},{"$f":"G28/C29","v":0.28883320673661822},{"$f":"SUM(I13:I26)","v":99720.762000000002},{"$f":"I28/C29","v":0.37293055694913124},{"$f":"SUM(K13:K26)","v":267397.67},{"$f":"K28/K29","v":1}]
[null,"TOTAL ACUMULADO",{"$f":"C28","v":267397.67},{"$f":"D28","v":1},{"$f":"E28","v":90443.5815},{"$f":"F28","v":0.33823623631425065},{"$f":"G28+E29","v":167676.908},{"$f":"H28+F29","v":0.62706944305086887},{"$f":"I28+G29","v":267397.67},{"$f":"J28+H29","v":1},{"$f":"K28","v":267397.67},{"$f":"L28","v":1}]

{"sheet":"COMPOSIÇÃO DO BDI","index":3,"n_rows":29,"n_cols":4,"rows_kept":29,"cut":false,"hidden":false,"merged":[[1,0,4,2],[27,0,27,1],[28,0,42,2],[5,0,5,1],[6,0,6,1],[10,0,10,1],[18,0,18,1]]}
[]
["COMPOSIÇÃO DO BDI OBRAS DE ENGENHARIA        "]
[]
[]
[]
["DESCRIÇÃO",null,"%"]
["GRUPO A"]
["A1","(AC) ADMINISTRAÇÃO CENTRAL - VARIA CONFORME O PORTE DA NÚMERO DE OBRAS EM ANDAMENTO, VOLUME FINANCEIRO DAS OBRAS A INICIAREM, ETC,  EM CADA   EM CADA EMPRESA - (ACORDAO 2622/2013 - 3,0% A 5,5%)",{"$f":"ROUND(AVERAGE(3%,5.5%),4)","v":4.2500000000000003E-2}]
[null,"TOTAL DO GRUPO A  =",{"$f":"SUM(C8)","v":4.2500000000000003E-2}]
[]
["GRUPO B"]
["B1","(DF) DESPESAS FINANCEIRAS - (ACORDAO 2622/2013 - 0,59% A 1,39%)",{"$f":"ROUND(AVERAGE(0.59%,1.39%),4)","v":9.9000000000000008E-3},"***deve estar dentro da média dos ultimos 3 meses antecedentes ao contrato"]
["B2","(S)   SEGUROS - (ACORDAO 2622/2013 SEGURO + GARANTIA - 0,8% A 1,0%)",{"$f":"ROUND(AVERAGE(0.4%,0.5%),4)","v":4.4999999999999997E-3}]
["B2","(G)   GARANTIAS - (ACORDAO 2622/2013 SEGURO + GARANTIA - 0,8% A 1,0%)",{"$f":"ROUND(AVERAGE(0.4%,0.5%),4)","v":4.4999999999999997E-3}]
["B3","(R)   TAXA DE RISCO E IMPREVISTOS - (ACORDAO 2622/2013 0,97% A 1,27%)",{"$f":"ROUND(AVERAGE(0.97%,1.27%),4)","v":1.12E-2}]
["B4","(L)    LUCRO (ACORDAO 2622/2013 6,16% A 8,96%)",{"$f":"ROUND(AVERAGE(6.16%,8.96%),4)","v":7.5600000000000001E-2}]
[null,"TOTAL DO GRUPO B  =",{"$f":"SUM(C12:C16)","v":0.1057}]
[]
["GRUPO C"]
["C1","ISS - (ISS% SOBRE 40% DE MÃO DE OBRA)"]
["C2","%MÃO DE OBRA",0.4]
["C3","ISS DO MUNICÍPIO",0.05]
["C4","SUBTOTAL ISS (C2 X C3) =",{"$f":"C22*C21","v":2.0000000000000004E-2}]
["C5","PIS",6.4999999999999997E-3]
["C6","COFINS",0.03]
[null,"TOTAL DO GRUPO C  =",{"$f":"SUM(C23:C25)","v":5.6500000000000002E-2}]
[]
["TOTAL BDI (FORMULA ACORDAO 2369/2011)",null,{"$f":"ROUND((1+C8+C13+C15+C14)*(1+C12)*(1+C16)/(1-C26)-1,4)","v":0.2235}]
[" BDI = (1+AC+S+R+G)x(1+DF)X(1+L))  -1\n                                  1-I\nOnde: \nAC = taxa representativa das despesas de rateio da Administração Central;\nS = taxa representativa de Seguros;\nR = taxa representativa de Riscos;\nG = taxa representativa de Garantias;\nDF = taxa representativa das Despesas Financeiras;\nL = taxa representativa do Lucro;\nI = taxa representativa da incidência de Impostos. \n\n  Observação:\n  i)   Composição do BDI, intervalos admissíveis e Fórmula de cálculo nos termos do Acórdão 2622/2013 do TCU."]

{"sheet":"COMPOSIÇÃO DO BDI EQUIPAMENTO","index":4,"n_rows":29,"n_cols":3,"rows_kept":29,"cut":false,"hidden":false,"merged":[[28,0,42,2],[1,0,4,2],[5,0,5,1],[6,0,6,1],[10,0,10,1],[18,0,18,1],[27,0,27,1]]}
[]
["COMPOSIÇÃO DO BDI REDUZIDO                       "]
[]
[]
[]
["DESCRIÇÃO",null,"%"]
["GRUPO A"]
["A1","(AC) ADMINISTRAÇÃO CENTRAL - VARIA CONFORME O PORTE DA NÚMERO DE OBRAS EM ANDAMENTO, VOLUME FINANCEIRO DAS OBRAS A INICIAREM, ETC,  EM CADA   EM CADA EMPRESA - (ACORDAO 2622/2013 - 1,5% A 4,49%)",{"$f":"ROUND(AVERAGE(1.5%,4.49%),4)","v":0.03}]
[null,"TOTAL DO GRUPO A  =",{"$f":"SUM(C8)","v":0.03}]
[]
["GRUPO B"]
["B1","(DF) DESPESAS FINANCEIRAS - (ACORDAO 2622/2013 - 0,85% A 1,11%)",{"$f":"ROUND(AVERAGE(0.85%,1.11%),4)","v":9.7999999999999997E-3}]
["B2","(S)   SEGUROS - (ACORDAO 2622/2013 SEGURO + GARANTIA - 0,3% A 0,82%)",{"$f":"ROUND(AVERAGE(0.3%/2,0.82%/2),4)","v":2.8E-3}]
["B2","(G)   GARANTIAS - (ACORDAO 2622/2013 SEGURO + GARANTIA - 0,3% A 0,82%)",{"$f":"ROUND(AVERAGE(0.3%/2,0.82%/2),4)","v":2.8E-3}]
["B3","(R)   TAXA DE RISCO E IMPREVISTOS - (ACORDAO 2622/2013 0,56% A 0,89%)",{"$f":"ROUND(AVERAGE(0.56%,0.89%),4)","v":7.3000000000000001E-3}]
["B4","(L)    LUCRO (ACORDAO 2622/2013 3,50% A 6,22%)",{"$f":"ROUND(AVERAGE(3.5%,6.22%),4)","v":4.8599999999999997E-2}]
[null,"TOTAL DO GRUPO B  =",{"$f":"SUM(C12:C16)","v":7.1300000000000002E-2}]
[]
["GRUPO C"]
["C1","ISS - (ISS% SOBRE 40% DE MÃO DE OBRA)"]
["C2","%MÃO DE OBRA",0]
["C3","ISS DO MUNICÍPIO",0.05]
["C4","SUBTOTAL ISS (C2 X C3) =",{"$f":"C22*C21","v":0}]
["C5","PIS",6.4999999999999997E-3]
["C6","COFINS",0.03]
[null,"TOTAL DO GRUPO C  =",{"$f":"SUM(C23:C25)","v":3.6499999999999998E-2}]
[]
["TOTAL BDI (ACORDAO 2369/2011)",null,{"$f":"ROUND((1+C8+C13+C15+C14)*(1+C12)*(1+C16)/(1-C26)-1,4)","v":0.14610000000000001}]
[" BDI = (1+AC+S+R+G)x(1+DF)X(1+L))  -1\n                                  1-I\nOnde: \nAC = taxa representativa das despesas de rateio da Administração Central;\nS = taxa representativa de Seguros;\nR = taxa representativa de Riscos;\nG = taxa representativa de Garantias;\nDF = taxa representativa das Despesas Financeiras;\nL = taxa representativa do Lucro;\nI = taxa representativa da incidência de Impostos. \n\n  Observação:\n  i)   Composição do BDI, intervalos admissíveis e Fórmula de cálculo nos termos do Acórdão 2622/2013 do TCU."]